fUSD/lending_fUSD_20250614
["ID","MTS","AMOUNT","RATE_DAILY","PERIOD"]
[365815755,1749934232280,-496.0,0.00016767,2]
[365815756,1749934232289,-620.0,0.0001679,2]
[365815757,1749934232300,-354.7,0.000168,2]
[365815758,1749934232311,-354.7,0.000168,2]
[365815759,1749934232320,-354.7,0.000168,2]
[365815760,1749934232330,-461.5,0.000168,2]
[365815761,1749934232339,-1400.0,0.000168,6]
[365815762,1749934232348,-227.0,0.00016811,2]
[365815763,1749934232358,-1423.0,0.0001683,2]
[365815764,1749934232367,-856.2867902,0.00016835,2]
[365815765,1749934232376,-1187.0,0.00016841,2]
[365815766,1749934232388,-905.94,0.00016891,2]
[365815767,1749934232399,-221.65,0.00016891,2]
[365815768,1749934232410,-1918.18943665,0.00016891,2]
[365815769,1749934232420,-1918.1894366,0.00016892,2]
[365815770,1749934232431,-1918.1894366,0.00016893,2]
[365815771,1749934232441,-1918.1894366,0.00016894,2]
[365815772,1749934232451,-1918.1894366,0.00016895,2]
[365815773,1749934232461,-1360.1869,0.00016899,2]
[365815774,1749934232471,-1140.63,0.00016899,2]
[365815775,1749934232482,-1000.0,0.00016899,2]
[365815776,1749934232493,-24711.1809,0.000169,2]
[365815777,1749934232502,-200.0,0.000169,6]
[365815778,1749934232512,-161.41727078,0.000169,2]
[365815779,1749934232521,-307.9419261,0.000169,2]
[365815780,1749934232531,-172.18415127,0.000169,2]
[365815781,1749934232540,-364.51711018,0.000169,2]
[365815782,1749934232550,-7453.07727717,0.000169,2]
[365815783,1749934232559,-188.97861564,0.000169,2]
[365815784,1749934232568,-329.42614474,0.000169,2]
[365815785,1749934232577,-1000.0,0.00016904,2]
[365815786,1749934232587,-425.0,0.00016913,2]
[365815787,1749934232597,-1170.0,0.00016925,2]
[365815788,1749934232607,-1000.0,0.0001696,2]
[365815789,1749934232616,-798.46782395,0.00016966,2]
[365815790,1749934232625,-500.0,0.00016973,2]
[365815791,1749934232634,-500.0,0.00016973,2]
[365815792,1749934232644,-500.0,0.00016973,2]
[365815793,1749934232653,-500.0,0.00016973,2]
[365815794,1749934232662,-1000.0,0.00016978,2]
[365815795,1749934232671,-201.0,0.00016981,3]
[365815796,1749934232681,-8048.0,0.0001699,2]
[365815797,1749934232690,-1069.8560458,0.00016991,2]
[365815798,1749934232699,-11706.30047333,0.00016991,2]
[365815799,1749934232711,-1067.6666,0.00016991,2]
[365815800,1749934232723,-612.17759608,0.00016991,2]
[365815801,1749934232734,-11994.18611821,0.00016991,2]
[365815802,1749934232747,-36563.29474158,0.00016991,2]
[365815803,1749934232756,-2184.066737,0.00016991,2]
[365815804,1749934232765,-3307.9543596,0.00016991,2]
[365815805,1749934232775,-150.0,0.00016994,2]
[365815806,1749934232785,-175.05,0.00016999,2]
[365815807,1749934232796,-500.0,0.00016999,2]
[365815808,1749934232805,-150.0,0.00016999,2]
[365815809,1749934232815,-500.0,0.00016999,2]
[365815810,1749934232824,-580.0,0.00016999,2]
[365815811,1749934232833,-150.0,0.00016999,2]
[365815812,1749934232843,-500.0,0.00016999,2]
[365815813,1749934232852,-150.0,0.00016999,2]
[365815814,1749934232862,-150.0,0.00016999,2]
[365815815,1749934232871,-500.0,0.00016999,2]
[365815816,1749934232881,-500.0,0.00016999,2]
[365815817,1749934232890,-150.0,0.00016999,2]
[365815818,1749934232900,-150.0,0.00016999,2]
[365815819,1749934232908,-150.0,0.00016999,2]
[365815820,1749934232918,-150.0,0.00016999,2]
[365815821,1749934232927,-425.83438481,0.00016999,2]
[365815822,1749934232937,-500.0,0.00016999,2]
[365815823,1749934232947,-430.87681237,0.00016999,2]
[365815824,1749934232956,-1160.0,0.00017,2]
[365815825,1749934232966,-6285.15827915,0.00017,2]
[365815826,1749934232975,-66715.97339593,0.00017,2]
[365815827,1749934232986,-1651.61918714,0.00017,2]
[365815828,1749934232998,-4187.37717545,0.00017,2]
[365815829,1749934233009,-4996.07217067,0.00017,2]
[365815839,1749934237309,-1918.1894366,0.00016896,2]
[365815840,1749934237320,-15236.42607777,0.00017,2]
[365815845,1749934237419,-2133.6,0.00017,2]
[365815846,1749934237534,-150.0,0.00016999,2]
[365815847,1749934237544,-92156.03939268,0.00017,2]
[365816035,1749934239503,-2661.7,0.00017,2]
[365816069,1749934239823,-815.85477659,0.00016897,2]
[365816356,1749934242582,-1102.33466001,0.00016897,2]
[365816358,1749934242592,-9577.20213999,0.00017,2]
[365816364,1749934242637,-71276.9089385,0.00017,2]
[365816366,1749934242647,-67105.75207899,0.00017,2]
[365816398,1749934242946,-200.0,0.00017,2]
[365816401,1749934242962,-189478.1268523,0.00017,2]
[365816740,1749934246628,-1918.1894366,0.00016898,2]
[365816742,1749934246642,-84283.44934691,0.00017,2]
[365816745,1749934246660,-19888.0511999,0.00017,2]
[365816748,1749934246677,-106490.12669568,0.00017,2]
[365816751,1749934246691,-49999.46483029,0.00017,2]
[365816755,1749934246721,-17091.68748971,0.00017,2]
[365816906,1749934331740,201.0,0.00015138,2]
[365816907,1749934397071,-201.0,0.00016017,3]
[365816908,1749934397113,-227.0,0.00016283,2]
[365816909,1749934421855,-203.03,0.00016283,2]
[365816910,1749934523751,-260.14015412,0.00016071,2]
[365816911,1749934537039,-39.68984588,0.00016071,2]
[365816912,1749934591275,-198.34197571,0.00016056,2]
[365816913,1749934594707,-185.94485591,0.00016056,2]
[365816914,1749934601563,185.94485,0.00015138,2]
[365816915,1749934607617,-218.08514409,0.00016056,2]
[365816916,1749934623750,-227.0,0.00016056,2]
[365816917,1749934631709,205.0,0.00015138,2]
[365816918,1749934638200,-123.40802429,0.00016056,2]
[365816919,1749934652534,-250.0,0.00016056,2]
[365816920,1749934691827,202.0,0.00015897,2]
[365816921,1749934726817,-203.61,0.00016029,2]
[365816922,1749934742625,-294.64232849,0.00016029,2]
[365816923,1749934758067,-56.61767151,0.00016029,2]
[365816924,1749934794587,-258.5628647,0.00016015,2]
[365816925,1749934802566,-186.5671353,0.00016015,2]
[365816926,1749934804588,152.19,0.00015997,2]
[365816927,1749934811677,200.0,0.00015897,2]
[365816928,1749934818002,-152.19,0.00016007,2]
[365816929,1749934818025,-147.64,0.00016015,2]
[365816930,1749934832962,-327.5135606,0.00016015,2]
[365816931,1749934839031,-79.7164394,0.00016015,2]
[365816932,1749934839055,-152.19,0.00016017,2]
[365816933,1749934839078,-82.89160606,0.00016027,2]
[365816934,1749934840647,-69.29839394,0.00016027,2]
[365816935,1749935051927,202.0,0.00015729,2]
[365816936,1749935079515,642.31160606,0.00015935,2]
[365816937,1749935104393,239.02,0.00016,2]
[365816938,1749935108523,994.15,0.0001395,2]
[365816940,1749935120006,150.0,0.00015818,7]
[365816941,1749935124074,403.96,0.00013699,2]
[365816942,1749935143051,913463.92208137,0.00016,2]
[365816943,1749935143082,762034.12033892,0.00016,2]
[365816944,1749935143112,2000000.0,0.00016,2]
[365816945,1749935143134,40819.72666667,0.00016,2]
[365816946,1749935143157,40819.72666667,0.00016,2]
[365816947,1749935143179,40819.72666667,0.00016,2]
[365816948,1749935143201,40819.72666667,0.00016,2]
[365816949,1749935143224,40819.72666667,0.00016,2]
[365816950,1749935143247,40819.72666667,0.00016,2]
[365816951,1749935143269,40819.72666667,0.00016,2]
[365816952,1749935143291,40819.72666667,0.00016,2]
[365816953,1749935143313,40819.72666667,0.00016,2]
[365816954,1749935143335,40819.72666667,0.00016,2]
[365816955,1749935143356,40819.72666667,0.00016,2]
[365816956,1749935143378,40819.72666667,0.00016,2]
[365816957,1749935143398,40819.72666667,0.00016,2]
[365816958,1749935143420,40819.72666667,0.00016,2]
[365816959,1749935143443,40819.72666667,0.00016,2]
[365816960,1749935143465,40819.72666667,0.00016,2]
[365816961,1749935143487,40819.72666667,0.00016,2]
[365816962,1749935143509,40819.72666667,0.00016,2]
[365816963,1749935143530,40819.72666667,0.00016,2]
[365816964,1749935143550,40819.72666667,0.00016,2]
[365816965,1749935143578,40819.72666667,0.00016,2]
[365816966,1749935143600,40819.72666667,0.00016,2]
[365816967,1749935143623,40819.72666667,0.00016,2]
[365816968,1749935143651,40819.72666667,0.00016,2]
[365816969,1749935143674,40819.72666667,0.00016,2]
[365816970,1749935143697,40819.72666667,0.00016,2]
[365816971,1749935143718,40819.72666667,0.00016,2]
[365816972,1749935143740,40819.72666667,0.00016,2]
[365816973,1749935143761,40819.72666667,0.00016,2]
[365816974,1749935143782,40819.72666667,0.00016,2]
[365816975,1749935144260,40819.72666667,0.00016,2]
[365816976,1749935144283,40819.72666667,0.00016,2]
[365816977,1749935144305,40819.72666667,0.00016,2]
[365816978,1749935144327,40819.72666667,0.00016,2]
[365816979,1749935144348,40819.72666667,0.00016,2]
[365816980,1749935144371,40819.72666667,0.00016,2]
[365816981,1749935144395,40819.72666667,0.00016,2]
[365816982,1749935144418,40819.72666667,0.00016,2]
[365816983,1749935144439,40819.72666667,0.00016,2]
[365816984,1749935144461,40819.72666667,0.00016,2]
[365816985,1749935144485,10000.0,0.00016,2]
[365816986,1749935145114,-219.0701159,0.00016,2]
[365816987,1749935146715,-195.32851728,0.00016,2]
[365816988,1749935150388,-234.31076084,0.00016,2]
[365816989,1749935152005,-166.16,0.00015876,2]
[365816990,1749935156533,-351.16072313,0.00015876,2]
[365816991,1749935159028,-178.57198021,0.00015876,2]
[365816992,1749935161668,-187.77453938,0.00015876,2]
[365816993,1749935165242,-175.49380153,0.00015876,2]
[365816994,1749935167544,-304.67148272,0.00015876,2]
[365816995,1749935167794,168.0,0.00015772,2]
[365816996,1749935172658,200.0,0.00015729,2]
[365816997,1749935177657,-227.0,0.00015876,2]
[365816998,1749935193118,-96.78747303,0.00015876,2]
[365816999,1749935193141,-101.55450268,0.00015899,2]
[365817000,1749935208047,-186.81400716,0.00015899,2]
[365817016,1749935269174,-157.3528802,0.000159,2]
[365817017,1749935330530,166.16,0.00015618,2]
[365817018,1749935331169,-130.89499643,0.000159,2]
[365817025,1749935411981,202.0,0.0001558,2]
[365817026,1749935414161,-201.0,0.000159,2]
[365817027,1749935417041,-127.06539909,0.000159,2]
[365817111,1749935432898,-250.0,0.00015981,2]
[365817113,1749935432908,-207.369998,0.00015989,2]
[365817116,1749935432920,-992.630002,0.00015989,2]
[365817118,1749935432929,-549.8863319,0.0001599,2]
[365817120,1749935432940,-3188.1155704,0.0001599,2]
[365817122,1749935432952,-849.83407237,0.0001599,2]
[365817124,1749935432963,-1060.0,0.0001599,2]
[365817126,1749935432974,-728.126,0.0001599,2]
[365817130,1749935433000,-2060.00000002,0.0001599,2]
[365817132,1749935433012,-372.99804426,0.0001599,2]
[365817134,1749935433023,-341.81713803,0.0001599,2]
[365817137,1749935433035,-704.41414524,0.0001599,2]
[365817139,1749935433047,-871.91188984,0.0001599,2]
[365817141,1749935433058,-970.63978002,0.0001599,2]
[365817601,1749935437518,-534.5945,0.0001599,2]
[365817607,1749935437566,-600.0,0.0001599,2]
[365817614,1749935437623,-2000.0,0.0001599,2]
[365817616,1749935437635,-413.29998605,0.0001599,2]
[365817618,1749935437647,-2663.0,0.0001599,2]
[365817828,1749935439792,-2645.0,0.0001599,2]
[365817831,1749935439803,-10609.08233709,0.0001599,2]
[365817834,1749935439815,-1626.11604874,0.0001599,2]
[365817839,1749935439851,-274431.03164078,0.0001599,2]
[365817841,1749935439860,-300.0,0.00015999,2]
[365817843,1749935439871,-396.56975557,0.00015999,2]
[365817845,1749935439880,-500.0,0.00015999,2]
[365817847,1749935439890,-194.09165607,0.00015999,2]
[365817849,1749935439900,-577.19555567,0.00015999,2]
[365817851,1749935439910,-1168371.00655179,0.00016,2]
[365817853,1749935439919,-300.0,0.00016,2]
[365817855,1749935439929,-300.0,0.00016034,2]
[365817857,1749935439939,-152.19,0.00016037,2]
[365817859,1749935439948,-152.19,0.00016047,2]
[365817861,1749935439958,-631.03,0.00016053,2]
[365817863,1749935439967,-152.19,0.00016057,2]
[365817865,1749935439976,-152.19,0.00016067,2]
[365817867,1749935439986,-152.19,0.00016077,2]
[365817869,1749935439995,-1957.856,0.00016149,2]
[365817871,1749935440005,-207.4,0.00016149,2]
[365817873,1749935440014,-300.0,0.00016168,2]
[365817875,1749935440023,-2030.296672,0.00016204,2]
[365817877,1749935440032,-994.15,0.00016214,2]
[365817879,1749935440040,-441.17075362,0.00016259,2]
[365817881,1749935440053,-235.97,0.00016283,2]
[365817883,1749935440062,-328.06539908,0.00016329,2]
[365817885,1749935440071,-344.55159698,0.00016383,2]
[365817886,1749935440081,-168.0,0.00016445,2]
[365817888,1749935440090,-202.0,0.00016451,3]
[365817890,1749935440099,-600.0,0.00016471,4]
[365817892,1749935440108,-658.47,0.00016478,2]
[365817894,1749935440117,-166.1,0.00016495,2]
[365817896,1749935440127,-300.0,0.00016548,2]
[365817898,1749935440136,-833.63237626,0.00016653,2]
[365817900,1749935440145,-910.73468,0.0001666,2]
[365817902,1749935440155,-170.73,0.000167,2]
[365817905,1749935440173,-454.71,0.000167,2]
[365817908,1749935440185,-1751.49,0.000167,2]
[365817910,1749935440195,-851.53,0.000167,2]
[365817912,1749935440204,-1164.33,0.000167,2]
[365817914,1749935440214,-288.24787661,0.00016757,2]
[365817916,1749935440224,-328.06539908,0.00016758,2]
[365817918,1749935440233,-168.0,0.00016864,2]
[365817920,1749935440243,-200.0,0.00016864,2]
[365817922,1749935440253,-151.0,0.0001689,2]
[365817924,1749935440262,-272.41329229,0.0001689,2]
[365817926,1749935440271,-334.31012847,0.0001689,2]
[365817928,1749935440280,-1200.0,0.0001689,2]
[365817930,1749935440289,-1200.0,0.0001689,2]
[365817932,1749935440298,-1200.0,0.0001689,2]
[365817934,1749935440307,-1200.0,0.0001689,2]
[365817935,1749935440316,-1200.0,0.0001689,2]
[365817938,1749935440326,-151.0,0.0001689,2]
[365817939,1749935440335,-151.0,0.0001689,2]
[365817942,1749935440345,-2500.0,0.000169,2]
[365817944,1749935440354,-161.41727078,0.000169,2]
[365817946,1749935440363,-263.95022238,0.000169,2]
[365817948,1749935440373,-172.18415127,0.000169,2]
[365817950,1749935440382,-3836.3788732,0.000169,2]
[365817952,1749935440392,-7230.35387209,0.000169,2]
[365817954,1749935440402,-188.97861563,0.000169,2]
[365817955,1749935440411,-364.04620884,0.000169,2]
[365817958,1749935440421,-201.33957346,0.000169,2]
[365817960,1749935440431,-4151.74570486,0.000169,2]
[365817962,1749935440440,-343.36638599,0.00016927,2]
[365817964,1749935440450,-150.0,0.00016959,2]
[365817966,1749935440461,-500.0,0.00016973,2]
[365817968,1749935440474,-500.0,0.00016973,2]
[365817970,1749935440484,-500.0,0.00016973,2]
[365817972,1749935440494,-500.0,0.00016973,2]
[365817974,1749935440503,-500.0,0.00016973,2]
[365817976,1749935440512,-500.0,0.00016973,2]
[365817978,1749935440521,-500.0,0.00016973,2]
[365817980,1749935440531,-842.17554514,0.00016977,2]
[365818022,1749935440927,-500.0,0.00016986,2]
[365818026,1749935440957,-500.0,0.00016986,2]
[365818028,1749935440966,-500.0,0.00016986,2]
[365818030,1749935440976,-308.39214046,0.00016986,2]
[365818033,1749935440985,-500.0,0.00016986,2]
[365818034,1749935440995,-500.0,0.00016986,2]
[365818036,1749935441004,-500.0,0.00016986,2]
[365818038,1749935441013,-912.504,0.0001699,2]
[365818041,1749935441022,-189.09,0.0001699,3]
[365818043,1749935441031,-1120.8983514,0.00016991,2]
[365818044,1749935441041,-47686.4541357,0.00016991,2]
[365818047,1749935441053,-10129.3243993,0.00016991,2]
[365818049,1749935441063,-741.2326021,0.00016994,2]
[365818051,1749935441073,-167.75,0.00016999,2]
[365818053,1749935441084,-579523.7089811,0.00017,2]
[365818055,1749935441094,-3142.57913957,0.00017,2]
[365818057,1749935441104,-62798.51155944,0.00017,2]
[365818058,1749935441113,-339.16430366,0.00017,2]
[365818060,1749935441123,-1000.0,0.00017,2]
[365818062,1749935441132,-123642.81342274,0.00017,2]
[365818079,1749935441346,-183007.66566744,0.00017,2]
[365818119,1749935441765,201.0,0.0001558,2]
[365818346,1749935443946,-5309.39999988,0.00017,2]
[365818348,1749935443958,-41771.06849722,0.00017,2]
[365818350,1749935443970,-122353.31748748,0.00017,2]
[365818355,1749935444013,-10601.0,0.00017,2]
[365818358,1749935444025,-10658.52,0.00017,2]
[365818498,1749935445650,-796.892845,0.0001666,2]
[365818499,1749935445670,-51.4491547,0.00017,2]
[365818500,1749935445694,-26343.40772378,0.00017,2]
[365818501,1749935445718,-345.69,0.00017,2]
[365818502,1749935445750,-16278.06650019,0.00017,2]
[365818503,1749935445761,-5300.0,0.00017,2]
[365818510,1749935575940,-226.88,0.000159,2]
[365818511,1749935578444,-204.80675857,0.000159,2]
[365818512,1749935581562,-347.05597994,0.000159,2]
[365818513,1749935584787,-153.58,0.000159,2]
[365818514,1749935587910,-161.62923755,0.000159,2]
[365818515,1749935591380,-172.36551022,0.000159,2]
[365818516,1749935592992,-288.37076245,0.000159,2]
[365818517,1749935596692,-325.41520263,0.000159,2]
[365818518,1749935607371,-55.31374864,0.000159,2]
[365818519,1749935607393,-167.554039,0.000159,2]
[365818520,1749935609518,-231.85590464,0.000159,2]
[365818521,1749935611632,-201.0,0.000159,2]
[365818522,1749935614603,-229.43053621,0.000159,2]
[365818523,1749935622166,201.0,0.0001558,2]
[365818524,1749935628139,-203.51,0.000159,2]
[365818525,1749935643160,-233.05946379,0.000159,2]
[365818526,1749935657530,-178.72,0.000159,2]
[365818527,1749935661265,-260.22767151,0.000159,2]
[365818528,1749935673695,-330.03567481,0.000159,2]
[365818529,1749935675339,-184.56958982,0.000159,2]
[365818530,1749935677404,-224.25900324,0.000159,2]
[365818531,1749935679979,-211.0,0.000159,2]
[365818532,1749935681592,-239.09288837,0.000159,2]
[365818533,1749935683049,202.0,0.0001558,2]
[365818534,1749935683150,-239.09288837,0.000159,2]
[365818535,1749935684828,-259.02711163,0.000159,2]
[365818536,1749935687735,-161.85310669,0.000159,2]
[365818537,1749935689295,-408.92942192,0.000159,2]
[365818538,1749935728377,-239.09288837,0.00016103,2]
[365818539,1749935760602,-239.09288837,0.00016022,2]
[365818540,1749935778379,168.0,0.00015635,2]
[365818541,1749935807050,-250.0,0.00016005,2]
[365818542,1749935807074,-113.07931173,0.00016022,2]
[365818543,1749935808980,-251.16177789,0.00016022,2]
[365818544,1749935811147,-226.88,0.00016022,2]
[365818545,1749935812667,-202.36822211,0.00016022,2]
[365818546,1749935840581,-249.42,0.00016022,2]
[365818547,1749935844998,-175.55145322,0.00016022,2]
[365818548,1749935849666,-232.77758568,0.00016022,2]
[365818549,1749935849689,-60.71563985,0.00016024,2]
[365818550,1749935852958,-301.27511087,0.00016024,2]
[365818551,1749935856882,-252.13,0.00016024,2]
[365818552,1749935858964,-111.11924928,0.00016024,2]
[365818553,1749935858985,-86.95750929,0.00016038,2]
[365818554,1749935863032,-172.208853,0.00016038,2]
[365818555,1749935866229,-153.0163917,0.00016038,2]
[365818556,1749935867754,-187.99529666,0.00016038,2]
[365818557,1749935882586,1000.0,0.00015495,2]
[365818558,1749935892995,-157.14,0.00016002,2]
[365818559,1749935893023,-33.66659855,0.00016007,2]
[365818560,1749935895108,-123.47340145,0.00016007,2]
[365818561,1749935895131,-157.14,0.00016013,2]
[365818562,1749935895154,-11.85351683,0.00016018,2]
[365818563,1749935899882,-145.28648317,0.00016018,2]
[365818564,1749935899906,-130.64303456,0.00016024,2]
[365818565,1749935903005,-26.49696544,0.00016024,2]
[365818566,1749935903029,-131.33328555,0.00016029,2]
[365818567,1749935905613,-25.80671445,0.00016029,2]
[365818568,1749935905637,-129.44693357,0.00016034,2]
[365818569,1749935907611,-27.69306643,0.00016034,2]
[365818570,1749935907634,-103.49194935,0.00016038,2]
[365818571,1749935907657,-25.16025924,0.0001604,2]
[365818572,1749935911210,-131.97974076,0.0001604,2]
[365818573,1749935911235,-60.85951103,0.00016045,2]
[365818574,1749935914779,-96.28048897,0.00016045,2]
[365818575,1749935914806,-157.14,0.0001605,2]
[365818576,1749935914829,-86.74305431,0.00016056,2]
[365818577,1749935938846,-155.25364802,0.00015876,2]
[365818578,1749935940925,-210.99287568,0.00015876,2]
[365818579,1749935946770,-154.82617451,0.00015876,2]
[365818580,1749935947887,-334.87671386,0.00015876,2]
[365818581,1749935958500,-223.05058793,0.00015876,2]
[365818582,1749935974312,-157.14,0.00015872,2]
[365818583,1749935989142,-291.48724601,0.00015872,2]
[365818584,1749935997319,168.0,0.00014662,2]
[365818585,1749936005188,-153.0163917,0.00015872,2]
[365818586,1749936018660,-284.32662153,0.00015872,2]
[365818587,1749936034155,-159.67280719,0.00015872,2]
[365818588,1749936035092,178.57,0.00015782,2]
[365818589,1749936044127,666.0,0.00015773,2]
[365818590,1749936048048,500.0,0.00015773,2]
[365818591,1749936049725,-3.30693357,0.00015872,2]
[365818592,1749936104540,1621.32,0.00015762,2]
[365818593,1749936131799,202.0,0.00015322,2]
[365818595,1749936177438,402.27,0.00013699,2]
[365818596,1749936256987,953.0,0.00013796,2]
[365818597,1749936259582,200.0,0.00015322,2]
[365818598,1749936307175,2702.91,0.000158,2]
[365818599,1749936400754,268.0,0.00024658,120]
[365818611,1749936447518,245.06,0.00015641,2]
[365818612,1749936492021,202.0,0.00015181,2]
[365818614,1749936544019,200.0,0.00015616,2]
[365818617,1749936562730,845.59,0.00015634,2]
[365818618,1749936573913,150.0,0.00016,5]
[365818626,1749936612533,200.0,0.00015181,2]
[365818632,1749936631759,-70.39694569,0.00016056,2]
[365818633,1749936631770,-202.0,0.0001606,3]
[365818635,1749936631780,-953.0,0.0001606,2]
[365818636,1749936631789,-157.14,0.00016061,2]
[365818637,1749936631799,-157.14,0.00016066,2]
[365818638,1749936631809,-157.14,0.00016072,2]
[365818639,1749936631819,-157.14,0.00016077,2]
[365818640,1749936631828,-157.14,0.00016082,2]
[365818641,1749936631838,-106.59711163,0.00016103,2]
[365818642,1749936631849,-1957.856,0.00016149,2]
[365818643,1749936631858,-207.4,0.00016149,2]
[365818644,1749936631868,-160.1932303,0.00016149,2]
[365818645,1749936631878,-351.34005743,0.0001615,2]
[365818646,1749936631888,-1200.0,0.000162,2]
[365818647,1749936631898,-1174.82658977,0.00016204,2]
[365818648,1749936631908,-152.0,0.00016324,3]
[365818649,1749936631919,-250.41173051,0.0001664,2]
[365818650,1749936631928,-300.0,0.00016644,2]
[365818651,1749936631938,-408.67544253,0.00016645,2]
[365818652,1749936631947,-1010.898445,0.0001666,2]
[365818653,1749936631956,-316.16044192,0.00016683,2]
[365818654,1749936631966,-366.0,0.00016699,2]
[365818655,1749936631975,-637.04400522,0.000167,2]
[365818656,1749936631987,-527.28599478,0.000167,2]
[365818657,1749936631997,-222.54547321,0.000167,2]
[365818658,1749936632008,-232.53452679,0.000167,2]
[365818659,1749936632018,-909.93,0.000167,2]
[365818660,1749936632029,-1164.33,0.000167,2]
[365818661,1749936632039,-674.24618034,0.000167,2]
[365818662,1749936632051,-490.08381966,0.000167,2]
[365818663,1749936632060,-170.78,0.000167,2]
[365818664,1749936632070,-170.78,0.000167,2]
[365818665,1749936632079,-1164.33,0.000167,2]
[365818666,1749936632089,-2326.21,0.000167,2]
[365818667,1749936632099,-151.0,0.0001679,2]
[365818668,1749936632110,-141.48371398,0.0001679,2]
[365818669,1749936632123,-70.59748745,0.0001679,2]
[365818670,1749936632132,-500.0,0.0001679,2]
[365818672,1749936632141,-334.31012847,0.0001679,2]
[365818674,1749936632151,-151.0,0.0001679,2]
[365818676,1749936632160,-151.0,0.0001679,2]
[365818678,1749936632169,-151.0,0.0001679,2]
[365818679,1749936632179,-272.41329229,0.0001679,2]
[365818680,1749936632188,-151.0,0.0001679,2]
[365818681,1749936632198,-1058.53276341,0.0001679,2]
[365818682,1749936632210,-141.46723659,0.0001679,2]
[365818683,1749936632219,-151.0,0.0001679,2]
[365818684,1749936632228,-1200.0,0.0001679,2]
[365818685,1749936632238,-265.49345065,0.0001679,2]
[365818687,1749936632247,-517.91200428,0.0001679,2]
[365818689,1749936632258,-682.08799572,0.0001679,2]
[365818691,1749936632268,-1200.0,0.0001679,2]
[365818693,1749936632277,-99.27758891,0.0001679,2]
[365818695,1749936632288,-488.78533752,0.0001679,2]
[365818698,1749936632299,-611.93707357,0.0001679,2]
[365818701,1749936632309,-151.0,0.0001679,2]
[365818704,1749936632319,-151.0,0.0001679,2]
[365818708,1749936632329,-909.92,0.000168,2]
[365818709,1749936632338,-1163.98,0.000168,2]
[365818712,1749936632350,-920.05171835,0.000168,2]
[365818714,1749936632361,-221.88833573,0.000168,2]
[365818716,1749936632371,-2500.0,0.000168,2]
[365818718,1749936632380,-341.56,0.000168,2]
[365818720,1749936632390,-2328.66,0.000168,2]
[365818722,1749936632399,-1618.06465177,0.000168,2]
[365818724,1749936632410,-1618.06465176,0.00016811,2]
[365818726,1749936632421,-1618.06465176,0.00016822,2]
[365818728,1749936632430,-1618.06465176,0.00016833,2]
[365818730,1749936632440,-985.32759375,0.00016844,2]
[365818732,1749936632456,-632.73705801,0.00016844,2]
[365818735,1749936632467,-426.12074199,0.00016856,2]
[365818737,1749936632479,-1191.94390977,0.00016856,2]
[365818739,1749936632489,-833.63237626,0.00016865,2]
[365818741,1749936632500,-1618.06465176,0.00016867,2]
[365818743,1749936632510,-1618.06465176,0.00016878,2]
[365818745,1749936632519,-417.91721383,0.00016881,2]
[365818747,1749936632529,-1618.06465176,0.00016889,2]
[365818749,1749936632538,-189.09,0.0001689,3]
[365818751,1749936632548,-252.21689206,0.00016894,2]
[365818753,1749936632557,-500.0,0.00016899,2]
[365818755,1749936632567,-500.0,0.00016899,2]
[365818757,1749936632576,-297.88597835,0.00016899,2]
[365818759,1749936632586,-500.0,0.00016899,2]
[365818761,1749936632597,-500.0,0.00016899,2]
[365818763,1749936632606,-500.0,0.00016899,2]